fUSD/lending_fUSD_20240530
["ID","MTS","AMOUNT","RATE_DAILY","PERIOD"]
[328238147,1717084232629,-340.31,0.00012806,2]
[328238148,1717084232638,-340.31,0.0001284,2]
[328238149,1717084232648,-200.0,0.00012857,2]
[328238150,1717084232659,-265.73225982,0.00012857,2]
[328238151,1717084232669,-340.31,0.00012874,2]
[328238152,1717084232678,-150.0,0.00012899,2]
[328238153,1717084232687,-1292.68657813,0.000129,2]
[328238154,1717084232696,-1455.90250242,0.000129,2]
[328238155,1717084232705,-1125.36975258,0.000129,2]
[328238156,1717084232714,-340.31,0.00012908,2]
[328238157,1717084232723,-1259.5331256,0.0001292,2]
[328238158,1717084232733,-215.4952387,0.0001292,2]
[328238159,1717084232742,-535.29274514,0.0001292,2]
[328238160,1717084232751,-7521.90153139,0.0001292,2]
[328238161,1717084232761,-264.33275806,0.0001292,2]
[328238162,1717084232770,-544.72756964,0.0001292,2]
[328238163,1717084232779,-657.03192757,0.0001292,2]
[328238164,1717084232789,-526.92220953,0.00012921,2]
[328238165,1717084232798,-718.26947629,0.00012921,2]
[328238166,1717084232807,-362.3044121,0.00012922,2]
[328238167,1717084232816,-340.31,0.00012942,2]
[328238168,1717084232825,-340.31,0.00012976,2]
[328238169,1717084232835,-152.68,0.0001299,2]
[328238170,1717084232845,-152.68,0.0001299,2]
[328238171,1717084232853,-152.68,0.0001299,2]
[328238172,1717084232862,-152.68,0.0001299,2]
[328238173,1717084232871,-152.68,0.0001299,2]
[328238174,1717084232881,-152.68,0.0001299,2]
[328238175,1717084232890,-152.68,0.0001299,2]
[328238176,1717084232899,-1455.90250238,0.00012991,2]
[328238177,1717084232909,-277.3658757,0.00012998,2]
[328238178,1717084232919,-153193.79761491,0.00013,2]
[328238179,1717084232931,-674.44896287,0.00013,2]
[328238180,1717084232954,-1301.40420275,0.00013,2]
[328238181,1717084232965,-6099.82610271,0.00013,2]
[328238182,1717084232978,-1074005.47871906,0.00013,2]
[328238183,1717084232989,-6329.55979309,0.00013,2]
[328238184,1717084233001,-7876.43527198,0.00013,2]
[328238185,1717084233014,-9791.23759092,0.00013,2]
[328238186,1717084233026,-3612.3288521,0.00013,2]
[328238187,1717084233038,-220680.36341638,0.00013,2]
[328238188,1717084233050,-259.94301548,0.00013,2]
[328238189,1717084233061,-4903.46776207,0.00013,2]
[328238190,1717084233072,-419903.31430588,0.00013,2]
[328238191,1717084233138,-1445.22698625,0.00013,2]
[328238192,1717084233149,-2657.2665935,0.00013,2]
[328238193,1717084233175,-11721.14183616,0.00013,2]
[328238194,1717084233187,-1075.9549519,0.00013,2]
[328238197,1717084238340,-21619.74239673,0.00013,2]
[328238198,1717084238400,-2655.39608266,0.00013,2]
[328238199,1717084238412,-523.55681014,0.00013,2]
[328238200,1717084238423,-38452.90971837,0.00013,2]
[328238201,1717084238459,-769.96443153,0.00013,2]
[328238202,1717084238471,-334.65724451,0.00013,2]
[328238203,1717084238485,-33225.5303331,0.00013,2]
[328238204,1717084238499,-8355.461751,0.00013,2]
[328238205,1717084238514,-8393.9461004,0.00013,2]
[328238206,1717084238527,-353965.27523904,0.00013,2]
[328238207,1717084238553,-806.57769128,0.00011223,2]
[328238208,1717084238563,-63257.96462635,0.00013,2]
[328238209,1717084238579,-2230.20091552,0.00013,2]
[328238210,1717084238590,-561.82928208,0.00013,2]
[328238211,1717084238644,-311.184893,0.00013,2]
[328238212,1717084238657,-11570.49727068,0.00013,2]
[328238213,1717084238702,-307.40360557,0.00013,2]
[328238218,1717084240151,-10268.49983822,0.00013,2]
[328238219,1717084240751,-1779.28274773,0.00013,2]
[328238220,1717084240763,-397.63098387,0.00013,2]
[328238221,1717084240775,-528.5269001,0.00013,2]
[328238222,1717084240786,-1414.37287089,0.00013,2]
[328238223,1717084240867,-1.373e-05,0.00013,2]
[328238224,1717084240879,-183136.37533127,0.00013,2]
[328238225,1717084240890,-686.73445205,0.00013,2]
[328238226,1717084240918,-322.78663802,0.00013,2]
[328238227,1717084240929,-1677.4,0.00013,2]
[328238228,1717084240944,-2506.03909275,0.00013,2]
[328238229,1717084240955,-1146.69328221,0.00013,2]
[328238230,1717084240966,-1048.40047955,0.00013,2]
[328238247,1717084242847,-12711.55308676,0.00013,2]
[328238248,1717084242860,-839.10109103,0.00013,2]
[328238249,1717084242962,-52835.12924865,0.00013,2]
[328238260,1717084246071,-2214.51208043,0.00011814,2]
[328238261,1717084246084,-573.43013765,0.00011814,2]
[328238262,1717084246096,-71.19402672,0.00011814,2]
[328238263,1717084246105,-217.32120358,0.00011814,2]
[328238264,1717084246117,-327.74705881,0.00012999,2]
[328238265,1717084246130,-207.3327526,0.00012999,2]
[328238266,1717084246139,-196857.43457445,0.00013,2]
[328238267,1717084247281,900.0,8.861e-05,2]
[328238268,1717084247312,1044.14944239,8.861e-05,2]
[328238269,1717084248692,211.19,0.00010959,2]
[328238270,1717084250999,688.47,0.0001076,2]
[328238271,1717084255949,-673.805041,0.00011755,2]
[328238272,1717084255971,-3326.194959,0.00011814,2]
[328238273,1717084258610,-4000.0,0.00011814,2]
[328238274,1717084259266,175.99,0.00010959,2]
[328238275,1717084259318,-4000.0,0.00011814,2]
[328238276,1717084260171,-4000.0,0.00011814,2]
[328238277,1717084260898,-4000.0,0.00011814,2]
[328238278,1717084261585,-4000.0,0.00011814,2]
[328238279,1717084262226,-1315.59454331,0.00011814,2]
[328238280,1717084269851,879.99,0.00010959,2]
[328238281,1717084287700,1804.41545669,0.00011813,2]
[328238282,1717084287725,4000.0,0.00011813,2]
[328238283,1717084287746,4000.0,0.00011813,2]
[328238284,1717084287767,4000.0,0.00011813,2]
[328238285,1717084287789,791.58454331,0.00011813,2]
[328238286,1717084299183,2550.07792439,9.75e-05,2]
[328238287,1717084315143,378.45961174,0.00011813,2]
[328238288,1717084316540,279.87792056,0.00011813,2]
[328238289,1717084316562,4000.0,0.00011813,2]
[328238290,1717084316584,4000.0,0.00011813,2]
[328238293,1717084347291,-337.62197281,0.00011812,2]
[328238294,1717084347312,-3662.37802719,0.00011812,2]
[328238295,1717084347814,-773.83559405,0.00011812,2]
[328238296,1717084351413,3226.16440595,0.00011713,2]
[328238297,1717084351435,4000.0,0.00011713,2]
[328238298,1717084351456,2705.72326828,0.00011713,2]
[328238299,1717084352497,1294.27673172,0.00011811,2]
[328238300,1717084352521,1071.95300091,0.00011811,2]
[328238301,1717084355271,450.61403774,0.00011812,2]
[328238302,1717084369924,544.72756964,0.00011812,2]
[328238303,1717084371084,1932.70539171,0.00011812,2]
[328238304,1717084377872,-884.06937294,0.00011812,2]
[328238305,1717084389211,533.61160406,0.00011568,2]
[328238306,1717084400979,481.15128798,0.00011812,2]
[328238307,1717084418625,289.51600348,0.00011568,2]
[328238308,1717084420202,1811.65173154,0.00011568,2]
[328238309,1717084420226,4000.0,0.00011568,2]
[328238310,1717084420249,4000.0,0.00011568,2]
[328238311,1717084420284,4000.0,0.00011568,2]
[328238312,1717084420312,4000.0,0.00011568,2]
[328238313,1717084420336,2430.77635532,0.00011568,2]
[328238314,1717084425480,714.24731743,0.00011812,2]
[328238315,1717084436617,423.08693752,0.00011568,2]
[328238316,1717084439170,431.88938973,0.00011568,2]
[328238317,1717084480177,-689.79801188,0.00011468,2]
[328238318,1717084520721,3310.20198812,0.00011468,2]
[328238319,1717084520744,4000.0,0.00011468,2]
[328238320,1717084520766,4000.0,0.00011468,2]
[328238321,1717084520787,4000.0,0.00011468,2]
[328238322,1717084520808,4000.0,0.00011468,2]
[328238323,1717084520829,4000.0,0.00011468,2]
[328238324,1717084520849,4000.0,0.00011468,2]
[328238325,1717084520871,4000.0,0.00011468,2]
[328238326,1717084639238,179.76,9.391e-05,2]
[328238327,1717084639820,-4000.0,0.00011465,2]
[328238328,1717084640539,-436.21362124,0.00011465,2]
[328238329,1717084640559,-714.24731743,0.00011466,2]
[328238330,1717084703255,2849.53906133,0.00011466,2]
[328238331,1717084703282,4000.0,0.00011466,2]
[328238332,1717084703304,4000.0,0.00011466,2]
[328238333,1717084703332,4000.0,0.00011466,2]
[328238334,1717084751881,696.88,9.875e-05,2]
[328238355,1717084797875,20242.42808686,9.875e-05,2]
[328238356,1717084809575,24641.78950231,9.875e-05,2]
[328238357,1717084809849,14903.05351267,9.875e-05,2]
[328238358,1717084830006,8002.71755327,9.875e-05,2]
[328238359,1717084843664,-150.0,0.00011465,2]
[328238360,1717084843688,-3850.0,0.00011466,2]
[328238361,1717084844243,-4000.0,0.00011466,2]
[328238362,1717084858491,-4000.0,0.00011466,2]
[328238363,1717084859094,-4000.0,0.00011466,2]
[328238364,1717084859693,-4000.0,0.00011466,2]
[328238365,1717084867304,2550.55954414,7.406e-05,2]
[328238366,1717084869688,-4000.0,0.00011466,2]
[328238367,1717084878207,-30000.0,0.00011466,2]
[328238368,1717084879376,155.0,9.875e-05,2]
[328238369,1717084883654,5708.01235836,9.875e-05,2]
[328238370,1717084966240,-2550.55954414,7.406e-05,2]
[328238371,1717084966266,-2931.84101213,9.875e-05,2]
[328238372,1717084966289,-12017.59944373,9.875e-05,2]
[328238373,1717085051204,-2549.90270737,7.406e-05,2]
[328238374,1717085051229,-150.0,9.874e-05,2]
[328238375,1717085051255,-24692.90546365,9.875e-05,2]
[328238376,1717085051280,-155.0,9.875e-05,2]
[328238377,1717085051303,-4339.88217594,9.875e-05,2]
[328238378,1717085051327,-10112.30965304,9.875e-05,2]
[328238379,1717085191268,-189.72534906,7.406e-05,2]
[328238381,1717085220084,-600.0,7.406e-05,2]
[328238382,1717085293234,-600.0,7.036e-05,2]
[328238409,1717085425050,-600.0,5.277e-05,2]
[328238410,1717085431777,-768.28055241,5.277e-05,2]
[328238411,1717085431787,-441.1767253,6.684e-05,2]
[328238412,1717085431799,-902.83697877,6.684e-05,2]
[328238413,1717085431808,-956.78567492,6.684e-05,2]
[328238414,1717085431818,-362.51321978,7.036e-05,2]
[328238415,1717085431829,-289.51600348,7.036e-05,2]
[328238416,1717085431841,-155.21133307,7.036e-05,2]
[328238417,1717085431850,-179.76,8.982e-05,2]
[328238418,1717085431860,-662.03,9.302e-05,2]
[328238419,1717085431870,-2161.01946632,9.875e-05,2]
[328238420,1717085431891,-616.59989011,9.875e-05,2]
[328238421,1717085431902,-599.46000008,9.875e-05,2]
[328238422,1717085431915,-1054.71998718,9.875e-05,2]
[328238423,1717085431927,-2422.6006563,9.875e-05,2]
[328238424,1717085431936,-318.05,0.00011104,2]
[328238425,1717085431945,-518.38,0.00011104,2]
[328238426,1717085431954,-150.0,0.0001119,2]
[328238427,1717085431963,-12316.0,0.00011198,2]
[328238428,1717085431972,-4472.55,0.00011204,2]
[328238429,1717085431983,-2824.78984145,0.00011339,2]
[328238430,1717085431995,-3691.43207292,0.00011339,2]
[328238431,1717085432007,-950.83935994,0.00011339,2]
[328238432,1717085432019,-3978.28296456,0.00011339,2]
[328238433,1717085432033,-562.15993343,0.00011339,2]
[328238434,1717085432044,-283.87982098,0.00011339,2]
[328238435,1717085432055,-11608.61600672,0.00011339,2]
[328238436,1717085432065,-11276.04,0.00011362,2]
[328238437,1717085432074,-200.0,0.00011378,2]
[328238438,1717085432085,-605.28,0.00011378,2]
[328238439,1717085432095,-196.78,0.00011378,2]
[328238440,1717085432105,-1091.01,0.0001153,2]
[328238441,1717085432115,-2160.68,0.0001153,2]
[328238442,1717085432124,-3467.67,0.0001153,2]
[328238443,1717085432136,-662.03,0.00011566,2]
[328238444,1717085432146,-19749.44622392,0.00011568,2]
[328238445,1717085432155,-2018.0,0.00011615,2]
[328238446,1717085432165,-726.76,0.00011617,2]
[328238447,1717085432174,-904.0,0.00011627,2]
[328238448,1717085432184,-170.15,0.00011646,2]
[328238449,1717085432194,-797.65,0.00011646,2]
[328238450,1717085432203,-167.45,0.00011672,2]
[328238451,1717085432213,-155.19320294,0.00011698,2]
[328238452,1717085432223,-170.15,0.00011849,2]
[328238453,1717085432233,-7773.99,0.00011877,2]
[328238454,1717085432244,-170.15,0.00012051,2]
[328238455,1717085432253,-2630.34,0.00012073,2]
[328238456,1717085432263,-1402.37,0.00012073,2]
[328238457,1717085432272,-273.24,0.00012252,2]
[328238458,1717085432281,-170.15,0.00012253,2]
[328238459,1717085432291,-499.99,0.0001235,2]
[328238460,1717085432300,-381.50348138,0.00012657,2]
[328238461,1717085432309,-411.86496791,0.00012742,2]
[328238462,1717085432319,-171.07,0.00012856,2]
[328238463,1717085432328,-7046.61099213,0.0001287,2]
[328238464,1717085432340,-119.43157889,0.0001287,2]
[328238465,1717085432349,-176.31670544,0.000129,2]
[328238466,1717085432360,-162.64348475,0.000129,2]
[328238467,1717085432369,-254.98296072,0.000129,2]
[328238468,1717085432378,-3841.40604049,0.000129,2]
[328238469,1717085432389,-322.04271837,0.000129,2]
[328238470,1717085432398,-152.52,0.0001299,2]
[328238471,1717085432408,-152.52,0.0001299,2]
[328238472,1717085432417,-152.52,0.0001299,2]
[328238473,1717085432427,-152.52,0.0001299,2]
[328238474,1717085432435,-152.52,0.0001299,2]
[328238475,1717085432444,-152.52,0.0001299,2]
[328238476,1717085432454,-152.52,0.0001299,2]
[328238477,1717085432463,-152.52,0.0001299,2]
[328238478,1717085432471,-489.49792713,0.00012998,2]
[328238479,1717085432480,-624.3999277,0.00012998,2]
[328238480,1717085432490,-560.9684664,0.00012998,2]
[328238481,1717085432499,-155.0,0.00012998,2]
[328238482,1717085432508,-1250.27456406,0.00012998,2]
[328238483,1717085432517,-327.22308883,0.00012998,2]
[328238484,1717085432526,-784.97137019,0.00012998,2]
[328238485,1717085432535,-263.23537355,0.00012998,2]
[328238486,1717085432544,-155.0,0.00012998,2]
[328238487,1717085432554,-538.21999742,0.00012998,2]
[328238488,1717085432563,-2841.07249371,0.00012998,2]
[328238489,1717085432572,-337.39633201,0.00012998,2]
[328238490,1717085432581,-216.60475269,0.00012998,2]
[328238491,1717085432591,-3705.04332316,0.00012998,2]
[328238492,1717085432600,-248.62293251,0.00012998,2]
[328238493,1717085432610,-210.28539183,0.00012998,2]
[328238494,1717085432620,-234.1947747,0.00012998,2]
[328238495,1717085432629,-403.27366081,0.00012998,2]
[328238496,1717085432640,-155.0,0.00012999,2]
[328238497,1717085432649,-957.03164367,0.00012999,2]
[328238498,1717085432658,-102980.3756855,0.00013,2]
[328238499,1717085432670,-700.67700589,0.00013,2]
[328238500,1717085433254,-1024.43638854,0.00013,2]
[328238501,1717085437813,-155.0,7.036e-05,2]
[328238502,1717085437823,-16119.61852,0.00013,2]
[328238503,1717085437871,-7216.09607886,0.00013,2]
[328238504,1717085437883,-1222.02031038,0.00013,2]
[328238505,1717085437896,-1988.21345814,0.00013,2]
[328238506,1717085437908,-1135.53216571,0.00013,2]
[328238507,1717085437921,-450.89332225,0.00013,2]
[328238508,1717085437933,-272.32466048,0.00013,2]
[328238509,1717085437944,-324.95664198,0.00013,2]
[328238510,1717085437955,-251.16883427,0.00013,2]
[328238511,1717085437967,-2330.71214622,0.00013,2]
[328238512,1717085437986,-6512.96046108,0.00013,2]
[328238513,1717085438005,-37892.7426653,0.00013,2]
[328238514,1717085438016,-70063.6538911,0.00013,2]
[328238515,1717085438045,-427.20419193,0.00013,2]
[328238516,1717085438157,-544.49802541,0.00013,2]
[328238545,1717085440762,-1228.233011,0.00012935,2]
[328238546,1717085440771,-135173.73846768,0.00013,2]
[328238547,1717085440819,-81179.1422244,0.00013,2]
[328238548,1717085440837,-193975.9672873,0.00013,2]
[328238549,1717085440849,-3106.43771268,0.00013,2]
[328238550,1717085440934,-3755.125,0.00013,2]
[328238551,1717085440947,-435.6188448,0.00013,2]
[328238552,1717085440963,-1892.58945264,0.00013,2]
[328238553,1717085440976,-2264.76768945,0.00013,2]
[328238554,1717085440989,-3128.52018317,0.00013,2]
[328238555,1717085441029,-4799.16000167,0.00013,2]
[328238604,1717085442902,-4345.65173473,6.683e-05,2]
[328238605,1717085442912,-1230050.21132216,0.00013,2]
[328238606,1717085442924,-831.48450349,0.00013,2]
[328238607,1717085443123,-972.55385994,0.00013,2]
[328238608,1717085443134,-19250.01800254,0.00013,2]
[328238609,1717085443147,-762.5,0.00013,2]
[328238610,1717085443246,-679.98,0.00013,2]
[328238611,1717085443258,-1063.04735,0.00013,2]
[328238612,1717085443270,-3853.3,0.00013,2]
[328238613,1717085443282,-993.56644484,0.00013,2]
[328238614,1717085443304,-2838.58721666,0.00013,2]
[328238615,1717085443317,-6044.14409262,0.00013,2]
[328238616,1717085443329,-6077.98951368,0.00013,2]
[328238617,1717085443340,-654.70264279,0.00013,2]
[328238621,1717085445871,-362.51321978,7.036e-05,2]
[328238622,1717085445881,-268.08947108,0.00012999,2]
[328238623,1717085445892,-1260.14730914,0.00013,2]
[328238624,1717085446082,-1714.838,0.00013,2]
[328238626,1717085446093,-43511.89698388,0.00013,2]
[328238627,1717085446108,-56373.89500508,0.00013,2]
[328238629,1717085446119,-670.85,0.00013,2]
[328238630,1717085446177,-3946.15275669,0.00013,2]
[328238631,1717085446189,-449209.3891614,0.00013,2]
[328238632,1717085670019,-540.51220902,7.035e-05,2]
[328238633,1717085670043,-155.0,7.036e-05,2]
[328238634,1717085670064,-1304.48779098,9.75e-05,2]
[328238635,1717085696045,-29.23241694,9.75e-05,2]
[328238636,1717085738372,3970.76758306,9.75e-05,2]
[328238637,1717085738397,4000.0,9.75e-05,2]
[328238638,1717085738420,4000.0,9.75e-05,2]
[328238639,1717085738442,4000.0,9.75e-05,2]
[328238640,1717085738465,4000.0,9.75e-05,2]
[328238641,1717085738492,4000.0,9.75e-05,2]
[328238642,1717085738515,4000.0,9.75e-05,2]
[328238643,1717085738539,4000.0,9.75e-05,2]
[328238644,1717085738561,4000.0,9.75e-05,2]
[328238645,1717085738583,4000.0,9.75e-05,2]
[328238646,1717085738604,4000.0,9.75e-05,2]
[328238647,1717085738626,836.47792388,9.75e-05,2]
[328238648,1717085738659,362.51321978,9.75e-05,2]
[328238649,1717085738704,956.78567492,9.263e-05,2]
[328238650,1717085742348,289.51600348,9.75e-05,2]
[328238651,1717085752503,362.51321978,9.75e-05,2]
[328238652,1717085752721,176.08875462,9.263e-05,2]
[328238653,1717085762357,289.51600348,9.75e-05,2]
[328238654,1717085770685,362.51321978,9.75e-05,2]
[328238655,1717085778379,364.07598028,9.75e-05,2]
[328238656,1717085778400,4000.0,9.75e-05,2]
[328238657,1717085778422,4000.0,9.75e-05,2]
[328238658,1717085778447,2000.0,9.75e-05,2]
[328238663,1717085815343,-4000.0,9.75e-05,2]
[328238664,1717085816097,-4000.0,9.75e-05,2]
[328238665,1717085816610,-4000.0,9.75e-05,2]
[328238666,1717085817499,-4000.0,9.75e-05,2]
[328238667,1717085818078,-4000.0,9.75e-05,2]
[328238668,1717085818681,-1257.2407578,9.75e-05,2]
[328238669,1717085818702,-289.51600348,9.75e-05,2]
[328238670,1717085818723,-168.5492471,9.75e-05,2]
[328238671,1717085818744,-160.89,9.78e-05,2]
[328238672,1717085836532,289.51600348,9.75e-05,2]
[328238673,1717085854377,311.42782388,9.78e-05,2]
[328238674,1717086298486,499.99,0.00031,30]
[328238675,1717086316638,160.89,9.416e-05,2]
[328238676,1717086560288,-659.8,9.963e-05,2]
[328238677,1717086560311,-1978.438858,9.971e-05,2]
[328238678,1717086560331,-209.34589343,9.973e-05,2]
[328238679,1717086560352,-82.56854857,0.00010175,2]
[328238692,1717086632394,-631.67876886,0.00010175,2]
[328238693,1717086632403,-150.0,0.00010175,2]
[328238694,1717086632413,-150.0,0.00010175,2]
[328238695,1717086632422,-150.0,0.00010175,2]
[328238696,1717086632432,-150.0,0.00010175,2]
[328238697,1717086632442,-150.0,0.00010175,2]
[328238698,1717086632453,-150.0,0.00010175,2]
[328238699,1717086632463,-150.0,0.00010175,2]
[328238700,1717086632472,-150.0,0.00010175,2]
[328238701,1717086632481,-150.0,0.00010175,2]
[328238702,1717086632490,-150.0,0.00010175,2]
[328238703,1717086632499,-150.0,0.00010175,2]
[328238704,1717086632508,-150.0,0.00010175,2]
[328238706,1717086632519,-150.0,0.00010175,2]
[328238708,1717086632528,-150.0,0.00010175,2]
[328238710,1717086632537,-117.43545279,0.00010175,2]
[328238712,1717086632549,-32.56454721,0.00010175,2]
[328238714,1717086632558,-150.0,0.00010175,2]
[328238715,1717086632568,-150.0,0.00010175,2]
[328238716,1717086632577,-150.0,0.00010175,2]
[328238717,1717086632587,-150.0,0.00010175,2]
[328238718,1717086632597,-150.0,0.00010175,2]
[328238719,1717086632608,-150.0,0.00010175,2]
[328238720,1717086632618,-132.1532923,0.00010175,2]
[328238721,1717086632643,-105.66995084,0.00010175,2]
[328238722,1717086632652,-165.56535883,0.00010176,2]
[328238723,1717086632662,-488.55,0.00010959,2]
[328238724,1717086632673,-452.55518761,0.00011568,2]
[328238725,1717086632682,-250.0,0.00011648,2]
[328238726,1717086632693,-150.0,0.00011657,2]
[328238727,1717086632703,-251.37928582,0.00011698,2]
[328238728,1717086632712,-294.34,0.00011698,2]
[328238729,1717086632723,-499.99,0.00011698,2]
[328238730,1717086632732,-299.99,0.0001172,2]
[328238731,1717086632743,-150.99,0.0001172,2]
[328238732,1717086632752,-150.0,0.0001172,2]
[328238733,1717086632762,-6608.3099787,0.00011721,2]
[328238734,1717086632773,-2285.28216049,0.00011721,2]
[328238735,1717086632793,-4526.39786081,0.00011721,2]
[328238736,1717086632803,-418.59,0.00011725,2]
[328238737,1717086632812,-150.99,0.00011725,2]
[328238738,1717086632821,-250.0,0.00011809,2]
[328238739,1717086632830,-167.45,0.0001182,2]
[328238740,1717086632975,-1475.75,0.00011941,2]
[328238741,1717086632985,-523.0,0.00012021,2]
[328238742,1717086632995,-581.41,0.0001211,2]
[328238743,1717086633004,-659.8,0.00012226,2]
[328238744,1717086633014,-1120.64156401,0.0001274,2]
[328238745,1717086633026,-1483.42330649,0.0001274,2]
[328238746,1717086633035,-381.50348138,0.00012827,2]
[328238747,1717086633045,-1934.28266,0.0001287,2]
[328238748,1717086633054,-168.0,0.00012892,2]
[328238749,1717086633063,-151.36229793,0.000129,2]
[328238750,1717086633073,-180.86971893,0.000129,2]
[328238751,1717086633082,-2871.99,0.000129,2]
[328238752,1717086633091,-395.4755,0.000129,2]
[328238753,1717086633100,-174.3647,0.000129,2]
[328238754,1717086633111,-521.4391792,0.000129,2]
[328238755,1717086633123,-584.49,0.000129,2]
[328238756,1717086633134,-598.11050968,0.000129,2]
[328238757,1717086633158,-11721.14183616,0.000129,2]
[328238759,1717086638064,-1206.76827496,0.000129,2]
[328238760,1717086638074,-323.80416591,0.000129,2]
[328238761,1717086638083,-1612.44311664,0.000129,2]
[328238762,1717086638092,-1511.07865852,0.0001299,2]
[328238763,1717086638102,-170.46016418,0.0001299,2]
[328238764,1717086638111,-1161.80565033,0.00012998,2]
[328238765,1717086638122,-3011.88935277,0.00012998,2]
[328238766,1717086638131,-521.91526871,0.00012998,2]
[328238767,1717086638140,-155.0,0.00012998,2]
[328238768,1717086638149,-7524.9148836,0.00012999,2]
[328238769,1717086638162,-711738.22861036,0.00013,2]
[328238770,1717086638171,-298.07368483,0.00013,2]
[328238771,1717086638180,-945.95035056,0.00013,2]
[328238772,1717086638189,-2000.0,0.00013,2]
[328238773,1717086638198,-200.0,0.00013,2]
[328238774,1717086638207,-1612.44311657,0.00013043,2]
[328238775,1717086638221,-2000.0,0.0001313,2]
[328238776,1717086638230,-200.0,0.0001313,2]
[328238777,1717086638239,-151.36229789,0.0001315,2]
[328238778,1717086638249,-1612.44311657,0.00013186,2]
[328238779,1717086638260,-418.59,0.00013191,2]
[328238780,1717086638269,-2000.0,0.00013261,2]
[328238781,1717086638279,-200.0,0.00013261,2]
[328238782,1717086638288,-1612.44311657,0.00013329,2]
[328238783,1717086638299,-150.0,0.0001337,2]
[328238784,1717086638309,-200.0,0.00013394,2]
[328238785,1717086638319,-151.36229789,0.000134,2]
[328238786,1717086638328,-200.0,0.00013528,2]
[328238787,1717086638337,-581.41,0.00013624,2]
[328238788,1717086638346,-151.36229789,0.0001365,2]
[328238789,1717086638356,-300.0,0.00013702,2]
[328238790,1717086638365,-300.0,0.00013889,2]
[328238791,1717086638374,-152.42,0.0001389,2]
[328238792,1717086638383,-1213.25208539,0.000139,2]
[328238793,1717086638392,-493.22363987,0.000139,2]
[328238795,1717086638402,-151.36229789,0.000139,2]
[328238797,1717086638411,-190.89242599,0.000139,2]
[328238799,1717086638420,-11211.20589238,0.000139,2]
[328238801,1717086638429,-150.0,0.0001394,2]
[328238803,1717086638439,-175.79,0.00013973,2]
[328238805,1717086638448,-163.73,0.00013973,2]
[328238806,1717086638457,-162.84,0.00013973,2]
[328238807,1717086638466,-152.42,0.0001399,2]
[328238808,1717086638475,-152.42,0.0001399,2]
[328238809,1717086638485,-152.42,0.0001399,2]
[328238810,1717086638494,-152.42,0.0001399,2]
[328238811,1717086638503,-152.42,0.0001399,2]
[328238812,1717086638513,-152.42,0.0001399,2]
[328238813,1717086638523,-152.42,0.0001399,2]
[328238814,1717086638532,-152.42,0.0001399,2]
[328238815,1717086638542,-152.42,0.0001399,2]
[328238816,1717086638551,-152.42,0.0001399,2]
[328238817,1717086638560,-152.42,0.0001399,2]
[328238818,1717086638569,-152.42,0.0001399,2]
[328238819,1717086638579,-152.42,0.0001399,2]
[328238820,1717086638588,-152.42,0.0001399,2]
[328238821,1717086638597,-152.42,0.0001399,2]
[328238822,1717086638607,-152.42,0.0001399,2]
[328238823,1717086638616,-152.42,0.0001399,2]
[328238824,1717086638630,-152.42,0.0001399,2]
[328238825,1717086638639,-152.42,0.0001399,2]
[328238826,1717086638648,-152.42,0.0001399,2]
[328238827,1717086638658,-152.42,0.0001399,2]
[328238828,1717086638667,-152.42,0.0001399,2]
[328238829,1717086638677,-152.42,0.0001399,2]
[328238830,1717086638686,-152.42,0.0001399,2]
[328238831,1717086638695,-152.42,0.0001399,2]
[328238832,1717086638705,-152.42,0.0001399,2]
[328238833,1717086638714,-152.42,0.0001399,2]
[328238834,1717086638724,-152.42,0.0001399,2]
[328238835,1717086638734,-152.42,0.0001399,2]
[328238836,1717086638743,-152.42,0.0001399,2]